Cogmind - Beta 10.2 @@@ ROGUE MODE // 2020.11.01 @ 19:19:21 // Halloween2020/ForbiddenLore Player: Palikka Result: Destroyed by GZ-VN1(z) with Makeshift Spear Performance ------------- Evolutions (3) 1500 Regions Visited (10) 2000 Robots Destroyed (194) 970 Value Destroyed (4701) 4701 Prototype IDs (44) 880 Alien Tech Used (0) 0 Bonus (865) 865 TOTAL SCORE: 10916 Bonus ------- High Alert Combat Kills 287 Aligned with FarCom 300 Met Imprinter 300 Friendly Fire -22 Cogmind --------- Core Integrity 0/700 Matter 89/300 Energy 340/340 System Corruption 31% Temperature Cool (0) Movement Walking (135) Location -6/Zion Parts ------- > --- POWER (1) -------- Graviton Reactor > --- PROPULSION (4) --- Makeshift Leg Makeshift Leg Makeshift Leg Armored Leg > --- UTILITY (6) ------ Large Storage Unit High-capacity Storage Unit Armor Integrity Analyzer Makeshift Armor Plating > --- WEAPON (2) ------- Makeshift Shrapnel Gun Makeshift Spear > --- INVENTORY (18) --- F-cell Engine Makeshift Leg Makeshift Leg Makeshift Leg Makeshift Leg Armored Leg Cooling System Large Storage Unit Experimental Energy Well (1000) High-capacity Matter Pod (67) Gravity Neutralizing Apparatus Long-range Sensor Array Advanced Targeting Computer Advanced Weapon Cycler Makeshift Hacking Suite AS-neutralizer No. 17b Riot Gun Makeshift Spear Peak State ------------ > --- POWER ------------ Graviton Reactor > --- PROPULSION ------- Makeshift Leg Makeshift Leg Armored Leg Enhanced Biometal Leg > --- UTILITY ---------- Large Storage Unit High-capacity Storage Unit Experimental Energy Well Advanced Signal Interpreter Armor Integrity Analyzer Makeshift System Restoration Module > --- WEAPON ----------- Makeshift Shrapnel Gun Makeshift Spear > --- INVENTORY -------- F-cell Engine Makeshift Leg Makeshift Leg Cooling System Large Storage Unit High-capacity Battery High-capacity Matter Pod Gravity Neutralizing Apparatus Long-range Sensor Array Advanced Targeting Computer Advanced Weapon Cycler Heavy Armor Plating Makeshift Armor Plating Makeshift Hacking Suite AS-neutralizer No. 17b Makeshift Shrapnel Gun Makeshift Spear [Rating: 65] Favorites ----------- Power Light Nuclear Core Engine Improved Ion Engine Power Core Light Nuclear Core Reactor Cold Fusion Reactor Propulsion Light Treads Treads Light Treads Leg Makeshift Leg Wheel Armored Huge Wheel Hover Unit Airjet Flight Unit Makeshift Flight Unit Utility Large Storage Unit Device Long-range Sensor Array Storage Large Storage Unit Processor Experimental Targeting Computer Hackware EX Chip 1 Protection Hardened Light Armor Plating Weapon Flak Gun Energy Cannon Guided Plasma Cannon Ballistic Gun Flak Gun Ballistic Cannon Improved Light Cannon Launcher Mini Grenade Launcher Slashing Weapon Katana Piercing Weapon Makeshift Spear Build | -11 -10 -10 -9 -9 -9 -8 -8 -7 -7 -6 ------- Run | Scr Mat Min Mat Min Exi Min Mat Fac Low Zio Slots Evolved 6 | . . . 2 . . . 2 2 . . Power . | . . . . . . . . . . . Propulsion 2 | . . . . . . . 1 1 . . Utility 4 | . . . 2 . . . 1 1 . . Weapon . | . . . . . . . . . . . Parts Attached 252 | 6 12 5 28 1 37 . 64 15 4 80 Power 31 | 1 3 2 5 . 4 . 7 . . 9 Engine 21 | 1 3 1 5 . 2 . 2 . . 7 Core 8 | . . 1 . . 1 . 5 . . 1 Reactor 2 | . . . . . 1 . . . . 1 Propulsion 69 | 2 1 1 7 . 4 . 17 4 . 33 Treads 37 | 2 1 1 7 . 3 . 16 3 . 4 Leg 29 | . . . . . 1 . . . . 28 Wheel 1 | . . . . . . . . 1 . . Hover 1 | . . . . . . . 1 . . . Flight 1 | . . . . . . . . . . 1 Utility 66 | 1 3 . 7 . 17 . 15 4 2 17 Device 10 | . . . . . 3 . 1 . 1 5 Storage 17 | 1 2 . 3 . 7 . 3 . . 1 Processor 11 | . 1 . . . 3 . 2 1 1 3 Hackware 2 | . . . . . 2 . . . . . Protection 26 | . . . 4 . 2 . 9 3 . 8 Artifact . | . . . . . . . . . . . Weapon 86 | 2 5 2 9 1 12 . 25 7 2 21 Energy Gun . | . . . . . . . . . . . Energy Cannon 2 | . . . . . 1 . . . . 1 Ballistic Gun 52 | 2 5 1 7 . 6 . 17 4 2 8 Ballistic Cannon 1 | . . . . . . . 1 . . . Launcher 18 | . . 1 2 1 3 . 6 3 . 2 Special Weapon . | . . . . . . . . . . . Impact Weapon . | . . . . . . . . . . . Slashing Weapon 8 | . . . . . 2 . 1 . . 5 Piercing Weapon 5 | . . . . . . . . . . 5 Special Melee Weapon . | . . . . . . . . . . . Unidentified Prototypes 12 | . . . . . 6 . . 1 . 5 Parts Lost 43 | . 1 . 2 . 5 . 1 . . 34 Power 7 | . . . 1 . 1 . . . . 5 Propulsion 13 | . . . . . 1 . . . . 12 Utility 11 | . . . 1 . 2 . 1 . . 7 Weapon 12 | . 1 . . . 1 . . . . 10 Highest Loss Streak 16 | . 1 . 1 . 3 . 1 . . 16 Average Slot Usage (%) 97 | . 99 100 99 100 95 100 99 92 92 92 Engine 5 | . 14 9 9 11 5 . 1 . . 2 Core 3 | . . 4 1 . 3 . 4 7 7 3 Reactor 1 | . . . . . 2 11 3 . . . Treads 21 | . 28 28 21 22 21 22 26 23 15 10 Leg 1 | . . . . . . . . . . 9 Device 1 | . . . . . . . . . 5 5 Storage 25 | . 24 28 33 33 23 33 27 23 23 20 Processor 7 | . 3 . . . 4 11 9 10 15 14 Protection 7 | . . . 11 11 12 . 8 7 1 3 Energy Cannon 1 | . . . . . 4 11 . . . . Ballistic Gun 16 | . 27 21 21 11 11 . 17 12 14 9 Slashing Weapon 1 | . . . . . 5 . . . . 2 Naked Turns . | . . . . . . . . . . . Heaviest Build 92 | 12 43 43 68 64 92 87 92 92 84 89 Greatest Support 90 | 40 40 42 42 40 42 42 62 80 28 90 Greatest Overweight (x) 4 | . 1 1 3 1 2 2 2 2 2 4 Average Overweight (x) 1 | . . . 1 1 . 2 1 1 2 1 Largest Inventory Capacity 24 | 6 16 16 22 22 24 24 24 24 24 24 Average Capacity 20 | 5 13 16 22 22 16 24 24 24 24 22 Most Carried 24 | 3 16 16 22 22 24 24 24 24 24 24 Average Carried 19 | 1 10 15 20 22 14 24 23 23 21 21 Final Capacity 24 | 6 16 16 22 22 24 24 24 24 24 18 Final Carried 24 | 2 16 16 22 22 24 24 24 24 21 18 Class Distribution -------------------- 52% | Scavenger-Mutant 26% | Hauler-Mutant 20% | Mutant Dominant Class ---------------- Mutant | -10/Materials Mutant | -10/Mines Hauler-Mutant | -9/Materials Hauler-Mutant | -9/Mines Scavenger-Mutant | -9/Exiles Hauler-Mutant | -8/Mines Scavenger-Mutant | -8/Materials Scavenger-Mutant | -7/Factory Hauler-Mutant | -7/Lower Caves Scavenger-Mutant | -6/Zion Resources | -11 -10 -10 -9 -9 -9 -8 -8 -7 -7 -6 ----------- Run | Scr Mat Min Mat Min Exi Min Mat Fac Low Zio Matter Collected 6508 | 212 552 409 909 28 1114 . 1565 242 50 1427 Remotely . | . . . . . . . . . . . Salvage Created 6043 | . 460 234 1292 64 464 . 2041 263 50 1175 Parts 422 | . 26 11 85 4 49 . 137 15 1 94 Haulers Intercepted 10 | . 2 . 3 . . . 5 . . . Recyclers Shooed 4 | . 2 . 1 . . . 1 . . . Parts Field Recycled . | . . . . . . . . . . . Retrieved Matter . | . . . . . . . . . . . Parts Self-Destructed . | . . . . . . . . . . . Prevented . | . . . . . . . . . . . Kills | -11 -10 -10 -9 -9 -9 -8 -8 -7 -7 -6 ------- Run | Scr Mat Min Mat Min Exi Min Mat Fac Low Zio Combat Hostiles Destroyed 112 | . 11 11 29 3 2 . 44 6 . 6 Melee 2 | . . . . . . . . . . 2 Guns 83 | . 11 7 25 . 2 . 31 3 . 4 AOE 27 | . . 4 4 3 . . 13 3 . . Classes Destroyed 21 | . 4 . 4 . 3 . 5 1 1 3 Worker 5 | . . . 1 . . . 4 . . . Builder 2 | . . . . . . . 2 . . . Hauler 10 | . 2 . 3 . . . 5 . . . Recycler 2 | . 1 . . . . . 1 . . . Operator 1 | . . . . . . . 1 . . . Turret 1 | . . . . . 1 . . . . . Watcher 6 | . . . 1 . . . 4 1 . . Swarmer 23 | . 6 6 4 . . . 4 3 . . Grunt 51 | . 5 5 18 2 . . 21 . . . Brawler 3 | . . . . . . . 3 . . . Duelist 4 | . . . 1 1 . . 2 . . . Protector 2 | . . . . . . . 2 . . . Sentry 18 | . . . 6 . . . 10 2 . . Hunter 2 | . . . . . . . 2 . . . Programmer 1 | . . . . . . . . 1 . . Zionite 49 | . . . . . 8 . . . . 41 Samaritan 1 | . . . . . . . . . 1 . Tinkerer 1 | . . . . . . . . . . 1 Assembled 1 | . . . . . 1 . . . . . Surgeon 1 | . . . . . . . . . . 1 Butcher 1 | . . . . . . . . . . 1 Guerrilla 1 | . . . . . . . . . . 1 Mutant 2 | . . . . . . . . . . 2 Best Kill Streak 8 | . 5 4 4 3 6 . 8 3 . 8 Combat Bots Only 8 | . 4 4 4 3 1 . 8 3 . 3 Max Kills in Single Turn 3 | . 2 2 3 2 1 . 2 2 1 2 Gunslinging 1 | . . 1 . . . . 1 . . . Exploded 3 | . . 2 3 2 . . 2 2 . . Melee 1 | . . . . . . . . . . 1 Uniques/NPCs Destroyed 6 | . . . . . 4 . . . . 2 8R-AWN (-9/Exiles) EX-HEX (-9/Exiles) EX-DEC (-9/Exiles) EX-BIN (-9/Exiles) NK-0LA (-6/Zion) Imprinter (-6/Zion) Combat | -11 -10 -10 -9 -9 -9 -8 -8 -7 -7 -6 -------- Run | Scr Mat Min Mat Min Exi Min Mat Fac Low Zio Damage Taken 10920 | . 535 327 1254 68 1083 . 1743 282 109 5519 Core 1348 | . 48 107 178 . 158 . 142 20 28 667 Absorbed by Shields . | . . . . . . . . . . . Core Remaining (%) 57 | 100 . 38 . . . 16 74 . . . Volleys Fired 498 | . 53 21 87 2 90 . 98 17 13 117 Largest 2 | . 2 2 2 1 2 . 2 2 2 2 Hottest 120 | . 40 46 50 30 120 . 58 56 58 90 Shots Fired 801 | . 104 28 171 2 125 . 173 29 21 148 Gun 722 | . 104 18 169 . 113 . 150 24 19 125 Cannon 25 | . . . . . 11 . . . . 14 Launcher 54 | . . 10 2 2 1 . 23 5 2 9 Special . | . . . . . . . . . . . Kinetic 722 | . 104 18 169 . 113 . 150 24 19 125 Thermal 25 | . . . . . 11 . . . . 14 Explosive 54 | . . 10 2 2 1 . 23 5 2 9 Electromagnetic . | . . . . . . . . . . . Robot Hit Streak 29 | . 7 10 16 2 22 . 29 26 10 28 Robot Miss Streak 8 | . 7 2 3 . 4 . 8 4 5 5 Penetration Max 2 | . . . . . 1 . 2 . . 1 Secondary Targets 10 | . 2 3 1 . . . 1 . . 3 Max Gunslinging Chain 1 | . 1 1 1 . . . 1 . . 1 Shots Hit Robots 644 | . 64 13 117 1 93 . 147 23 20 166 Core Hits 462 | . 26 13 50 6 33 . 186 31 10 107 Critical Hits 25 | . . . . . 15 . 6 . 1 3 Critical Kills 4 | . . . . . 3 . . . . 1 Critical Parts Destroyed 19 | . . . . . 10 . 6 . 1 2 Melee Attacks 83 | . . . . . . . 2 . . 81 Impact . | . . . . . . . . . . . Slashing 37 | . . . . . . . 2 . . 35 Piercing 46 | . . . . . . . . . . 46 Sneak Attacks 1 | . . . . . . . . . . 1 Combat Hostiles . | . . . . . . . . . . . Follow-up Attacks 9 | . . . . . . . . . . 9 Damage Inflicted 15963 | . 699 471 2154 267 1998 . 5245 715 415 3999 Guns 9995 | . 699 208 1820 . 1609 . 2694 522 336 2107 Cannons 666 | . . . . . 389 . . . . 277 Explosions 3904 | . . 263 334 267 . . 2551 193 79 217 Melee 1398 | . . . . . . . . . . 1398 Ramming . | . . . . . . . . . . . Kinetic 9995 | . 699 208 1820 . 1609 . 2694 522 336 2107 Thermal 748 | . . . . 82 389 . . . . 277 Explosive 3822 | . . 263 334 185 . . 2551 193 79 217 Electromagnetic . | . . . . . . . . . . . Impact . | . . . . . . . . . . . Slashing 463 | . . . . . . . . . . 463 Piercing 935 | . . . . . . . . . . 935 Highest Corruption 31 | . 5 6 2 2 2 2 . 1 1 31 Average Corruption 5 | . 4 5 2 2 2 2 . 1 1 22 Corruption Purged 3 | . . . . . . . . . . 3 Effects 193 | . 38 17 21 2 22 3 . . 1 89 Message Errors 42 | . 10 6 8 1 8 1 . . . 8 Matter Fused 18 | . 9 1 . . . . . . . 8 Heat Flow Errors 19 | . 3 1 2 1 5 1 . . . 6 Energy Discharges 13 | . . 3 2 . 2 . . . . 6 Parts Rejected 6 | . 3 . . . . . . . . 3 Data Loss (minor) 27 | . 6 2 3 . 5 1 . . . 10 Data Loss (major) 7 | . 3 1 . . . . . . . 3 Misfires 2 | . . 2 . . . . . . . . Misdirections 12 | . . . . . . . . . . 12 Targeting Errors 41 | . 4 1 5 . 2 . . . . 29 Weapon Failures 6 | . . . 1 . . . . . 1 4 Overload Shots . | . . . . . . . . . . . Overflow Damage 77 | . . . . 5 6 . 29 . . 37 Projectiles 12 | . . . . . 6 . . . . 6 Explosions 34 | . . . . 5 . . 29 . . . Melee 31 | . . . . . . . . . . 31 Knockbacks . | . . . . . . . . . . . Impact . | . . . . . . . . . . . Kinetic . | . . . . . . . . . . . Secondary . | . . . . . . . . . . . Self-Inflicted Damage 384 | . . 117 . 58 . . 18 53 89 49 Shots 12 | . . 4 . 2 . . 1 2 2 1 Rammed 2 | . . . . . . . 2 . . . Targets Rammed 2 | . . . . . . . 2 . . . Kicked . | . . . . . . . . . . . Crushed . | . . . . . . . . . . . Highest Temperature 334 | . 231 234 177 259 320 89 27 21 . 334 Average Temperature 85 | . 48 110 26 109 134 48 9 12 . 117 Received Heat Transfer 2010 | . 165 54 438 6 . . 675 54 . 618 Effects 6 | . . . . . 3 . . . . 3 Energy Bleed 5 | . . . . . 2 . . . . 3 Interference 1 | . . . . . 1 . . . . . Siege Activations . | . . . . . . . . . . . Robots Corrupted . | . . . . . . . . . . . Combat Hostiles . | . . . . . . . . . . . Parts Fried . | . . . . . . . . . . . Impact Corruptions . | . . . . . . . . . . . Robots Melted . | . . . . . . . . . . . Combat Hostiles . | . . . . . . . . . . . Parts Melted 16 | . . . . . 14 . . . . 2 Heat Transferred 1392 | . . . . 100 880 . . . . 412 Parts Sabotaged . | . . . . . . . . . . . Parts Stolen 2 | . . . . . . . . . 2 . Parts Stripped . | . . . . . . . . . . . Power Chain Reactions . | . . . . . . . . . . . Missiles Intercepted . | . . . . . . . . . . . Alert | -11 -10 -10 -9 -9 -9 -8 -8 -7 -7 -6 ------- Run | Scr Mat Min Mat Min Exi Min Mat Fac Low Zio Peak Influence 738 | . 211 255 561 239 . . 738 300 . . Initial 287 | . . 5 99 154 . . . 287 . . Average 256 | . 79 37 269 234 . . 441 155 . . Maximum Alert Level 3 | . 1 1 2 1 . . 3 1 . . Low Security (%) 47 | 100 93 97 38 6 . 100 10 66 . . Level 1 24 | . 6 2 39 93 . . 25 33 . . Level 2 27 | . . . 22 . . . 63 . . . Level 3 . | . . . . . . . 1 . . . Level 4 . | . . . . . . . . . . . Level 5 . | . . . . . . . . . . . High Security . | . . . . . . . . . . . Max Security . | . . . . . . . . . . . Squads Dispatched 14 | . 2 . 2 . . . 6 4 . . Investigation . | . . . . . . . . . . . Extermination 1 | . . . . . . . . 1 . . Reinforcement 8 | . 2 . 2 . . . 4 . . . Assault 2 | . . . . . . . 2 . . . Garrison 3 | . . . . . . . . 3 . . Intercept . | . . . . . . . . . . . Construction Impeded 1 | . . . . . . . 1 . . . Haulers Reinforced . | . . . . . . . . . . . Stealth | -11 -10 -10 -9 -9 -9 -8 -8 -7 -7 -6 --------- Run | Scr Mat Min Mat Min Exi Min Mat Fac Low Zio Distress Signals 8 | . 2 . 2 . . . 3 1 . . Communications Jammed . | . . . . . . . . . . . Distress Signals . | . . . . . . . . . . . Times Spotted 257 | . 25 10 51 3 16 . 69 11 3 69 Peak Tracking Total 9 | . 4 3 5 3 9 . 9 4 2 5 Tactical Retreats 36 | . . . 8 . 7 . 5 . . 16 Traps | -11 -10 -10 -9 -9 -9 -8 -8 -7 -7 -6 ------- Run | Scr Mat Min Mat Min Exi Min Mat Fac Low Zio Traps Triggered 9 | . 3 1 2 . . . 1 2 . . Indirectly . | . . . . . . . . . . . Trap Hack Attempts . | . . . . . . . . . . . Triggered . | . . . . . . . . . . . Disarmed 6 | . 6 . . . . . . . . . Reprogrammed . | . . . . . . . . . . . Reused . | . . . . . . . . . . . Traps Extracted . | . . . . . . . . . . . Installed . | . . . . . . . . . . . Triggered . | . . . . . . . . . . . Exploded 3 | . . . . . 3 . . . . . Machines | -11 -10 -10 -9 -9 -9 -8 -8 -7 -7 -6 ---------- Run | Scr Mat Min Mat Min Exi Min Mat Fac Low Zio Machines Disabled 16 | . 1 1 . 1 9 . 4 . . . Max in Single Turn 2 | . 1 1 . 1 1 . 2 . . . Garrison Access 1 | . . . . . . . 1 . . . Machines Sabotaged . | . . . . . . . . . . . Garrisons Compromised . | . . . . . . . . . . . Overloaded Fab Kills . | . . . . . . . . . . . Fab Network Shutdowns . | . . . . . . . . . . . Hacking | -11 -10 -10 -9 -9 -9 -8 -8 -7 -7 -6 --------- Run | Scr Mat Min Mat Min Exi Min Mat Fac Low Zio Machines Accessed 32 | . 6 2 6 . 1 . 11 6 . . Terminals 26 | . 6 1 6 . . . 8 5 . . Fabricators 1 | . . . . . . . . 1 . . Repair Stations 1 | . . . . . . . 1 . . . Recycling Units . | . . . . . . . . . . . Scanalyzers 1 | . . . . . . . 1 . . . Garrison Access 1 | . . . . . . . 1 . . . Total Hacks 84 | . 16 2 17 . 1 . 36 12 . . Successful 41 | . 10 1 5 . 1 . 19 5 . . Failed 43 | . 6 1 12 . . . 17 7 . . Catastrophic 14 | . 1 1 3 . . . 7 2 . . Database Lockouts . | . . . . . . . . . . . Manual 39 | . 3 . 12 . 1 . 20 3 . . Terminals 69 | . 16 1 17 . . . 25 10 . . Fabricators 2 | . . . . . . . . 2 . . Repair Stations 2 | . . . . . . . 2 . . . Recycling Units . | . . . . . . . . . . . Scanalyzers 8 | . . . . . . . 8 . . . Garrison Access 1 | . . . . . . . 1 . . . Terminal Hacks 23 | . 9 1 3 . 1 . 5 4 . . Prototype ID Bank 5 | . 3 . . . . . . 2 . . Open Door 1 | . . 1 . . . . . . . . Branch Access Points 1 | . . . 1 . . . . . . . Alert Level 2 | . 1 . . . . . . 1 . . Unreport Threat 6 | . 1 . 1 . . . 3 1 . . Locate Traps 5 | . 2 . 1 . . . 2 . . . Disarm Traps 1 | . 1 . . . . . . . . . Hauler Manifests 1 | . 1 . . . . . . . . . EX-Prototype ID Bank 1 | . . . . . 1 . . . . . Fabricator Hacks 1 | . . . . . . . . 1 . . Load Schematic 1 | . . . . . . . . 1 . . Repair Station Hacks 2 | . . . . . . . 2 . . . Scan Component 1 | . . . . . . . 1 . . . Repair 1 | . . . . . . . 1 . . . Recycling Unit Hacks . | . . . . . . . . . . . Scanalyzer 6 | . . . . . . . 6 . . . Insert Component 2 | . . . . . . . 2 . . . Analyze 4 | . . . . . . . 4 . . . Garrison Access Hacks 1 | . . . . . . . 1 . . . Seal Access 1 | . . . . . . . 1 . . . Unauthorized Hacks 8 | . 1 . 2 . . . 5 . . . Terminals 8 | . 1 . 2 . . . 5 . . . Track 2 | . . . . . . . 2 . . . Botnet 6 | . 1 . 2 . . . 3 . . . Fabricators . | . . . . . . . . . . . Repair Stations . | . . . . . . . . . . . Recycling Units . | . . . . . . . . . . . Scanalyzers . | . . . . . . . . . . . Garrison Access . | . . . . . . . . . . . Data Cores Recovered . | . . . . . . . . . . . Used . | . . . . . . . . . . . Hacking Detections 29 | . 6 1 6 . . . 10 6 . . Full Trace Events 2 | . . . 1 . . . 1 . . . Feedback Events . | . . . . . . . . . . . Feedback Blocked . | . . . . . . . . . . . Robot Schematics Acquired . | . . . . . . . . . . . Robots Built . | . . . . . . . . . . . Matter . | . . . . . . . . . . . Time . | . . . . . . . . . . . Total Robot Build Rating . | . . . . . . . . . . . Part Schematics Acquired 2 | . . . . . . . 2 . . . Parts Built . | . . . . . . . . . . . Matter . | . . . . . . . . . . . Time . | . . . . . . . . . . . Total Part Build Rating . | . . . . . . . . . . . Parts Repaired 1 | . . . . . . . 1 . . . Time 38 | . . . . . . . 38 . . . Parts Recycled . | . . . . . . . . . . . Recycled Matter . | . . . . . . . . . . . Retrieved Matter . | . . . . . . . . . . . Retrieved Components . | . . . . . . . . . . . Parts Scanalyzed 2 | . . . . . . . 2 . . . Part Schematics Acquired 2 | . . . . . . . 2 . . . Parts Damaged . | . . . . . . . . . . . Bothacking | -11 -10 -10 -9 -9 -9 -8 -8 -7 -7 -6 ------------ Run | Scr Mat Min Mat Min Exi Min Mat Fac Low Zio Used RIF Installer . | . . . . . . . . . . . Robots Hacked . | . . . . . . . . . . . Non-combat . | . . . . . . . . . . . Combat . | . . . . . . . . . . . Robot Hacks Applied . | . . . . . . . . . . . Relay Couplers Released . | . . . . . . . . . . . Robots Rewired . | . . . . . . . . . . . Allies Hacked . | . . . . . . . . . . . Hacks Repelled . | . . . . . . . . . . . Allies | -11 -10 -10 -9 -9 -9 -8 -8 -7 -7 -6 -------- Run | Scr Mat Min Mat Min Exi Min Mat Fac Low Zio Total Allies 2 | . . . . . . . . . . 2 Largest Group 2 | . . . . . . . . . . 2 Highest-Rated Group 62 | . . . . . . . . . . 62 Highest-Rated Ally 37 | . . . . . . . . . . 37 Total Orders . | . . . . . . . . . . . Ally Attacks . | . . . . . . . . . . . Total Damage . | . . . . . . . . . . . Kills . | . . . . . . . . . . . Allies Corrupted . | . . . . . . . . . . . Allies Melted . | . . . . . . . . . . . Intel | -11 -10 -10 -9 -9 -9 -8 -8 -7 -7 -6 ------- Run | Scr Mat Min Mat Min Exi Min Mat Fac Low Zio Robot Analysis Total . | . . . . . . . . . . . Derelict Logs Recovered 4 | . . 1 . . . . . . . 3 Drone Launches . | . . . . . . . . . . . Drone Recoveries . | . . . . . . . . . . . Exploration | -11 -10 -10 -9 -9 -9 -8 -8 -7 -7 -6 ------------- Run | Scr Mat Min Mat Min Exi Min Mat Fac Low Zio Turns Passed 13676 | 59 1388 677 2122 59 2375 164 2915 1112 183 2622 Spaces Moved 6742 | 33 718 223 959 31 1146 84 1250 664 119 1515 Core 4 | 4 . . . . . . . . . . Treads 4910 | 29 718 223 959 31 1146 84 1250 332 . 138 Legs 389 | . . . . . . . . . . 389 Wheels 1439 | . . . . . . . . 332 119 988 Hover . | . . . . . . . . . . . Flight . | . . . . . . . . . . . Fastest Speed 50 | 50 160 152 172 180 152 192 175 120 120 120 Average Speed 160 | 146 165 167 176 180 172 192 179 149 120 129 Slowest Speed 260 | 160 180 180 220 180 192 192 200 180 120 260 Overloaded Moves . | . . . . . . . . . . . Propulsion Burnouts . | . . . . . . . . . . . Robots Hopped . | . . . . . . . . . . . Cave-ins Triggered . | . . . . . . . . . . . Exploration Rate (%) 50 | 4 93 35 79 7 90 26 97 16 27 84 Regions Visited 10 Branch Regions 6 Pre-discovered Areas 2 | . . . . . . . . . . 2 Known Exits Taken 3 | . . . 1 . . . 1 1 . . Unknown Exits Taken 7 | 1 1 1 . 1 1 1 . . 1 . Scrap Searched 3 | . . . . . . . . . . 3 Spaces Dug 10 | . . . . . 7 . 2 . . 1 Terrain Destroyed 394 | . . 56 26 24 25 . 180 36 23 24 Melee 2 | . . . . . . . 2 . . . Projectile 18 | . . . . . 18 . . . . . AOE 374 | . . 56 26 24 7 . 178 36 23 24 Terrain Rammed . | . . . . . . . . . . . Walls Destroyed . | . . . . . . . . . . . Machines Disabled . | . . . . . . . . . . . Actions | -11 -10 -10 -9 -9 -9 -8 -8 -7 -7 -6 --------- Run | Scr Mat Min Mat Min Exi Min Mat Fac Low Zio Total 8806 | 41 835 503 1240 35 1441 87 1761 757 135 1971 Wait 900 | . 13 242 124 . 88 4 278 46 . 105 Move 6732 | 32 717 222 958 30 1145 83 1249 663 118 1515 Hop . | . . . . . . . . . . . Pick Up 138 | 3 24 5 18 1 31 . 14 4 . 38 Fast Attach 78 | 5 5 2 5 . 18 . 17 3 . 23 Attach 52 | 1 1 . 4 . 9 . 4 4 1 28 Detach 26 | . 1 . . . 11 . 4 3 . 7 Swap 122 | . 6 3 19 1 10 . 43 8 3 29 Drop 189 | . 15 8 25 1 39 . 50 9 . 42 Fire 498 | . 53 21 87 2 90 . 98 17 13 117 Melee 69 | . . . . . . . 2 . . 67 Ram . | . . . . . . . . . . . Kick . | . . . . . . . . . . . Crush 2 | . . . . . . . 2 . . . Escape Stasis . | . . . . . . . . . . . Rewire . | . . . . . . . . . . . Trap . | . . . . . . . . . . . Miscellaneous . | . . . . . . . . . . . Route ------- -11/Scrapyard -10/Materials (discovered 4 exits: *Mat x3 / *Min) -10/Mines -9/Materials (discovered 5 exits: *Mat x3 / *Min / Sto) -9/Mines -9/Exiles (discovered 2 exits: [*Min x2]) -8/Mines -8/Materials (discovered 3 exits: *Fac x3) -7/Factory (discovered 2 exits: *Fac / *Low) -7/Lower Caves -6/Zion (discovered 1 exit: *Pro) History --------- Turn | Location | Event 29 | -11/Scrapyard | Discovered new exit (range 14) 60 | -11/Scrapyard | Entered Materials 228 | -10/Materials | Discovered new exit (range 16) 306 | -10/Materials | Build established: Mutant 351 | -10/Materials | Discovered new exit (range 11) 602 | -10/Materials | Discovered new exit (range 6) 1064 | -10/Materials | Discovered new exit (range 8) 1448 | -10/Materials | Entered Mines 1491 | -10/Mines | Excavation squad dispatched 1491 | -10/Mines | A large section of the Mines collapsed 1741 | -10/Mines | Excavation squad dispatched 1875 | -10/Mines | Learned location of 1 exit from Materials 1879 | -10/Mines | Met a Derelict who couldn't figure out how to use a Trap Extractor 1881 | -10/Mines | Core integrity fell below 50% 1950 | -10/Mines | Found a hidden stash of uninstalled traps 1991 | -10/Mines | Excavation squad dispatched 2104 | -10/Mines | Discovered new exit (range 8) 2125 | -10/Mines | Entered Materials 2125 | -9/Materials | Evolved 2 slots: Utility x2 2126 | -9/Materials | Identified exit to Storage 2325 | -9/Materials | Discovered new exit (range 10) 2413 | -9/Materials | Discovered new exit (range 5) 2424 | -9/Materials | Build established: Hauler-Mutant 3148 | -9/Materials | Discovered new exit (range 15) 3371 | -9/Materials | Discovered new exit (range 16) 3712 | -9/Materials | Identified exit to Mines 4247 | -9/Materials | Entered Mines 4299 | -9/Mines | Deemed a non-threat by the Exiles lab entrance 4299 | -9/Mines | Discovered new exit (range 5) 4306 | -9/Mines | Entered Exiles 4345 | -9/Exiles | Discovered new exit (range 15) 4365 | -9/Exiles | Met 8R-AWN 4416 | -9/Exiles | Met EX-HEX 4475 | -9/Exiles | Met EX-BIN 4497 | -9/Exiles | Aligned with FarCom system 4498 | -9/Exiles | Given EX-Vault access code 4540 | -9/Exiles | Opened EX-Vault 4594 | -9/Exiles | Warned to stay clear of 0b10 Research branches 4767 | -9/Exiles | Met EX-DEC 4840 | -9/Exiles | Discovered new exit (range 11) 5098 | -9/Exiles | Found Gui. Plasma Cannon 5162 | -9/Exiles | Build established: Mutant 5383 | -9/Exiles | Attacked by the Exiles 5490 | -9/Exiles | Core integrity fell below 50% 5555 | -9/Exiles | Core integrity fell below 20% 5590 | -9/Exiles | Destroyed 8R-AWN 5593 | -9/Exiles | Lost 3 parts (1n2u) 5598 | -9/Exiles | Found Prototype Ballistic Gun 5598 | -9/Exiles | Identified 8R-AWN's Boregun 5602 | -9/Exiles | Found Prototype Device 5602 | -9/Exiles | Identified AS-neutralizer No. 17b 5615 | -9/Exiles | Found Prototype Processor 5615 | -9/Exiles | Identified Exp. Targeting Computer 5885 | -9/Exiles | Build established: Scavenger-Mutant 6062 | -9/Exiles | Destroyed EX-HEX 6141 | -9/Exiles | Destroyed EX-DEC 6178 | -9/Exiles | Destroyed EX-BIN 6681 | -9/Exiles | Left Exiles lab with Gui. Plasma Cannon 6681 | -9/Exiles | Entered Mines 6833 | -8/Mines | Discovered new exit (range 7) 6845 | -8/Mines | Entered Materials 6845 | -8/Materials | Evolved 2 slots: Propulsion x1, Utility x1 7004 | -8/Materials | Destroyed 8 combat bots 7530 | -8/Materials | Discovered new exit (range 13) 8045 | -8/Materials | First assault squad dispatched 8607 | -8/Materials | Discovered new exit (range 15) 8657 | -8/Materials | Identified exit to Factory 9380 | -8/Materials | Discovered exit to Factory (range 13) 9746 | -8/Materials | Repaired Adv. Treads 9760 | -8/Materials | Entered Factory 9760 | -7/Factory | Evolved 2 slots: Propulsion x1, Utility x1 10247 | -7/Factory | Garrison activated, responded to threat 10369 | -7/Factory | Discovered new exit (range 4) 10381 | -7/Factory | Identified exit to Lower Caves 10551 | -7/Factory | Discovered new exit (range 6) 10557 | -7/Factory | Identified exit to Factory 10872 | -7/Factory | Entered Lower Caves 10872 | -7/Lower Caves | Spotted CS-XJC(f) 10873 | -7/Lower Caves | Encountered a Master Thief 10885 | -7/Lower Caves | Spotted EB-BBW(f) 10886 | -7/Lower Caves | Encountered a Master Thief 10888 | -7/Lower Caves | Gui. Plasma Cannon stolen by Master Thief 10890 | -7/Lower Caves | 8R-AWN's Boregun stolen by Master Thief 11053 | -7/Lower Caves | A Derelict revealed a hidden shortcut to a safe place 11055 | -7/Lower Caves | Entered Zion 11103 | -6/Zion | System corruption cleaned by Quarantine Array 11171 | -6/Zion | Identified exit to Proximity Caves 11222 | -6/Zion | Build established: Hauler-Mutant 11243 | -6/Zion | Learned 4 Factory zone layouts 11512 | -6/Zion | Learned 8 Factory zone layouts 11574 | -6/Zion | Gained Derelict followers 11650 | -6/Zion | Visited the Megawrench Repair Shop 11738 | -6/Zion | Received a hallucinogenic algorithm 11954 | -6/Zion | Build established: Scavenger-Mutant 12157 | -6/Zion | Megawrench repaired 10 parts 12281 | -6/Zion | Attacked by Zionites 12353 | -6/Zion | Lost 7 parts (2p2n3w) 12678 | -6/Zion | NK-0LA came to Zion's defense 12716 | -6/Zion | System corruption reached 10% 12748 | -6/Zion | Core integrity fell below 50% 12805 | -6/Zion | Lost 16 parts (3p7n2u4w) 12854 | -6/Zion | Destroyed NK-0LA 12904 | -6/Zion | Found Prototype Device 12904 | -6/Zion | Identified Thermal Barrier 12942 | -6/Zion | Core integrity fell below 20% 13170 | -6/Zion | Destroyed Imprinter 13176 | -6/Zion | Extracted access codes from Imprinter's data core 13614 | -6/Zion | System corruption reached 30% 13627 | -6/Zion | Lost 4 parts (3u1w) 13677 | -6/Zion | Destroyed by GZ-VN1(z) with Makeshift Spear Last Messages --------------- 13615_ PS-0V0(M) destroyed. 13619_ Acquired Mak. Shrapnel Gun. 13626_ System corrupted: Heat flow error (+291). 13638_ Acquired 12 matter. 13639_ Acquired 72 matter. 13642_ Acquired Riot Gun. 13644_ Acquired Mak. Armor Plating. 13646_ System corrupted: Heat flow error (+255). 13646_ Acquired 10 matter. 13650_ Acquired 5 matter. 13655_ System corrupted: Mak. Shrapnel Gun targeting data glitched. 13657_ GZ-VN1(z) pulls a Mak. Spear out of the Twisted Machinery. 13657_ System corrupted: Mak. Shrapnel Gun targeting data glitched. 13658_ Mak. Armor Plating destroyed. 13661_ System corrupted: Mak. Shrapnel Gun jammed. 13662_ System corrupted: Matter fused (-5). 13665_ System corrupted: Mak. Shrapnel Gun targeting data glitched. 13672_ System corrupted: Mak. Shrapnel Gun jammed. 13674_ System corrupted: Mak. Shrapnel Gun targeting data glitched. 13677_ System corrupted: Substantial component data lost. Map ----- +----------------------------------------------------+ | ??????##### ##???????????##"" !=== " | | ??????????###????????##???#"" *! """"" """ | | ????????????????????"#""""#"" "" """#" """" | | ???????????????????"#"" ""##" ""= ""#"""""#"" | | ???????????????????""" """" "" * #""#"""#### | | ???????????????????" """ "" """"#""#??? | | ???????????????????"" "" "" """#####??? | | ????????????????????"" "" !*#""#??????? | | ????????????????????#"""" "" #""#??????? | | ????????????????????#"""" "" """#??????? | | ????????????????????#""" """#??????? | | ?????????????????????#" #""#??????? | | ?????????????????????#"" " """ """#??????? | | ?????????????????????#""" """ """"??????? | | ????????????????####?###" """ #""#??????? | | ??????????????### /### "" """ #""#??????? | | ??????????????# ! """ """ #""#??????? | | ??????????????# ! "" ""#???????? | | ??????????????##!//= " ""#???????? | | ???????????????##### "" ""#???????? | | ????????????????##### """""""" ""????????? | | ????????????????#""#" """"""" """"??????? | | ?????????????????#""" """" m "??????? | | ?????????????????##" ! ""??????? | | ????????????????##""* ""???????? | | ????????????????#"" *= " @ / """ """???????? | | ????????????????#"" """""z= """ " """#??????? | | ????????##??????#""=!"#"""" M """" """#??????? | | ??????###"####?###""""##"#"! "" """##?????# | | ??????"""""""###"##"""#"#"" " """"#?##### | | ??????#""""""""""#"#""""""" " """####"#"" | | """???#""" """"" " """"""""""" | | """""?##"" " """""#" | | #"#" """ "" """" | | " ##"" """""" """"" "" | | "" """#"#"""" """"" "" | | "" "#"""##""" """"" " | | "" ""#####""" """""" """"#"" | | " ###" ""#??#"" """""" """""""" | | ?##"" ""#??#""" """" """"" " | | """???#""" ""#??##""" """" """""""" | | ??????#""" ""#??#"#""" """"" """ "" | | ??????##"" ""#??###""" """"" | | ??????#""# ""#???####"" """" | | ??#"""#### #"#??"#"#""""" """"" | | ?#" #"#??#"#"""""" ""#"""" """ | | ?#" #?#?##""" """"###""" """ | | ?#" #???#""" """###"#""" | | ?## #### #???##" ""###?###""" | | ??# ????######????#" """"#"#????##""" "" | +----------------------------------------------------+ Best States ------------- Heat Dissipation 34 Energy Generation 29 Energy Capacity 500 Matter Stores 500 Matter Capacity 500 Sight Range 16 Robot Scan Range 20 Terrain Scan Density 10 Armor Coverage 700 Resistance: TH 50 Utility Shielding 33 Evasion (%) 40 Targeting Accuracy 12 Armor Integrity Analysis 33 Recoil Reduction 4 Item Schematics ----------------- Gravity Neutralizing Apparatus | -8/Materials | Scanalyzed Adv. Signal Interpreter | -8/Materials | Scanalyzed Robot Schematics ------------------ None Fabricated ------------ Nothing Alien Tech Used ----------------- None Achievements -------------- Monster Challenges ------------ None Game ------ Seed LinkedChargeSplitter Manual? 0 Play Time 02:02:55 Cumulative 291.2 hours Start 2020.11.01 @ 13:05:33 End 2020.11.01 @ 19:19:21 Sessions 5 Manual Loads 0 Difficulty Rogue Special Mode Halloween2020/ForbiddenLore Game No. 398 Rogue 398 Adventurer 0 Explorer 0 Win Type - Total 33 Types 23/0/7/3/0/0/0/0/0 Lore% 87 Gallery% 83 Achievement% 52 Wizard Run 0 Options --------- ASCII 0 Keyboard 1 Movement Numpad Keybinds 0 Fullscreen 1 Font 24/Smallcaps Map View 76x50 Tactical HUD 1 Map Filters NONE Filters NONE Steam 1 RUN: 2917821f-027d-41d1-9322-80be0c6fb005